bitfinex/quotes_BTCUSD_20241028
["timestamp","ask_amount","ask_price","bid_price","bid_amount"]
[1730134581971,0.145236,68854.0,68849.0,0.146067]
[1730134582174,0.50809707,68858.0,68850.0,0.145242]
[1730134582387,0.145234,68854.0,68850.0,0.145242]
[1730134582590,0.290469,68855.0,68849.0,0.000823]
[1730134582716,0.145237,68853.0,68849.0,0.000823]
[1730134582916,0.001,68854.0,68849.0,0.000823]
[1730134583127,0.145239,68852.0,68849.0,0.000823]
[1730134583505,0.145239,68852.0,68849.0,0.001823]
[1730134583707,0.145243,68850.0,68849.0,0.001823]
[1730134583919,0.290473,68853.0,68849.0,0.000823]
[1730134584172,0.145236,68853.0,68849.0,0.000823]
[1730134584474,0.148239,68852.0,68849.0,0.000823]
[1730134585019,0.145239,68852.0,68849.0,0.000823]
[1730134585218,0.145235,68854.0,68850.0,0.145242]
[1730134585435,0.290461,68856.0,68849.0,0.000823]
[1730134585623,0.145237,68853.0,68849.0,0.000823]
[1730134585871,0.290465,68855.0,68849.0,0.002823]
[1730134586067,0.145231,68856.0,68849.0,0.293311]
[1730134586305,0.292077,68864.0,68850.0,0.17028599]
[1730134586659,0.001646,68852.0,68851.0,0.14524]
[1730134586779,0.001646,68852.0,68851.0,0.31552599]
[1730134588653,0.004646,68852.0,68851.0,0.31552599]
[1730134588873,0.004646,68852.0,68851.0,0.31752599]
[1730134592649,0.004646,68852.0,68851.0,0.39272599]
[1730134593076,0.004646,68852.0,68851.0,0.7315298]
[1730134594051,0.001646,68852.0,68851.0,0.7365298]
[1730134594270,0.23260207,68866.0,68863.0,0.145215]
[1730134594271,0.21846507,68865.0,68863.0,0.145215]
[1730134594430,0.21846507,68865.0,68863.0,0.7241048]
[1730134594879,0.000823,68865.0,68863.0,0.7241048]
[1730134596678,0.002646,68864.0,68863.0,0.7381048]
[1730134597143,0.002646,68864.0,68863.0,0.417315]
[1730134597343,0.003646,68864.0,68863.0,0.2791]
[1730134597677,0.148859,68864.0,68863.0,0.021]
[1730134598871,0.16241755,68864.0,68863.0,0.021]
[1730134599312,0.16141755,68864.0,68863.0,0.007]
[1730134599759,0.01620455,68864.0,68851.0,0.145239]
[1730134599978,0.01620455,68864.0,68855.0,0.21764207]
[1730134599979,0.145217,68862.0,68855.0,0.21764207]
[1730134600258,0.002646,68864.0,68850.0,0.077323]
[1730134600259,0.145234,68854.0,68850.0,0.222565]
[1730134600448,0.145232,68856.0,68850.0,0.077323]
[1730134600711,0.290438,68862.0,68851.0,0.290482]
[1730134600944,0.01356808,68861.0,68852.0,0.290478]
[1730134601141,0.145227,68858.0,68854.0,0.145233]
[1730134603107,0.145229,68857.0,68852.0,0.290478]
[1730134603336,0.145231,68856.0,68854.0,0.006]
[1730134603552,0.001,68858.0,68854.0,0.151234]
[1730134603553,0.146227,68858.0,68854.0,0.151234]
[1730134603751,0.001,68858.0,68854.0,0.014]
[1730134603951,0.290448,68859.0,68852.0,0.145237]
[1730134604181,0.001,68858.0,68854.0,0.006]
[1730134604406,0.145229,68857.0,68854.0,0.006]
[1730134604627,0.146229,68857.0,68854.0,0.006]
[1730134604839,0.146229,68857.0,68853.0,0.145235]
[1730134605042,0.146229,68857.0,68852.0,0.014]
[1730134605043,0.145231,68856.0,68852.0,0.159238]
[1730134605251,0.145232,68855.0,68852.0,0.159238]
[1730134605480,0.001,68857.0,68852.0,0.014]
[1730134605688,0.14523,68856.0,68852.0,0.159238]
[1730134605896,0.145233,68855.0,68851.0,0.14524]
[1730134606107,0.290459,68857.0,68854.0,0.006]
[1730134606310,0.01357961,68856.0,68854.0,0.006]
[1730134606513,0.01357961,68855.0,68854.0,0.006]
[1730134606816,0.15881261,68855.0,68852.0,0.014]
[1730134607019,0.145233,68855.0,68852.0,0.006]
[1730134607447,0.01359208,68854.0,68852.0,0.014]
[1730134607562,0.145241,68851.0,68850.0,0.077323]
[1730134607768,0.145241,68851.0,68850.0,0.000823]
[1730134607998,0.51338791,68851.0,68850.0,0.000823]
[1730134608212,0.55694825,68851.0,68850.0,0.000823]
[1730134608419,0.57435139,68851.0,68850.0,0.000823]
[1730134609630,0.58635139,68851.0,68850.0,0.001823]
[1730134610355,0.61098165,68851.0,68850.0,0.001823]
[1730134610560,0.58835139,68851.0,68850.0,0.001823]
[1730134610768,0.58835139,68851.0,68850.0,0.002823]
[1730134610769,0.60035139,68851.0,68850.0,0.002823]
[1730134610968,0.58635139,68851.0,68850.0,0.001823]
[1730134611165,0.60035139,68851.0,68850.0,0.001823]
[1730134611366,0.73342857,68851.0,68850.0,0.001823]
[1730134611609,0.60035139,68851.0,68850.0,0.001823]
[1730134611866,0.60887233,68851.0,68850.0,0.001823]
[1730134612067,0.59687233,68851.0,68850.0,0.000823]
[1730134612241,0.60887233,68851.0,68850.0,0.001823]
[1730134612443,0.59487233,68851.0,68850.0,0.001823]
[1730134612643,0.58287233,68851.0,68850.0,0.000823]
[1730134612824,0.59687233,68851.0,68850.0,0.002823]
[1730134613023,0.60887233,68851.0,68850.0,0.002823]
[1730134614111,0.35278947,68851.0,68850.0,0.002823]
[1730134614241,0.33919457,68851.0,68850.0,0.002823]
[1730134614443,0.33010504,68851.0,68850.0,0.002823]
[1730134615251,0.31810504,68851.0,68850.0,0.001823]
[1730134615721,0.31310504,68851.0,68850.0,0.001823]
[1730134615914,0.31310504,68851.0,68850.0,0.000823]
[1730134616263,0.33110504,68851.0,68850.0,0.001823]
[1730134616487,0.57584798,68851.0,68850.0,0.001823]
[1730134616707,0.87478114,68851.0,68850.0,0.001823]
[1730134616911,0.87478114,68851.0,68850.0,0.000823]
[1730134616912,0.88517904,68851.0,68850.0,0.000823]
[1730134617117,0.90052825,68851.0,68850.0,0.000823]
[1730134617340,0.90852825,68851.0,68850.0,0.001823]
[1730134617548,0.91052825,68851.0,68850.0,0.001823]
[1730134617746,0.90852825,68851.0,68850.0,0.001823]
[1730134618172,0.89552825,68851.0,68850.0,0.001823]
[1730134618590,0.81518366,68851.0,68850.0,0.002823]
[1730134618785,0.79634029,68851.0,68850.0,0.001823]
[1730134618997,0.81033304,68851.0,68850.0,0.002823]
[1730134620130,0.79678608,68851.0,68850.0,0.002823]
[1730134620427,0.81033107,68851.0,68850.0,0.002823]
[1730134620772,0.79298186,68851.0,68850.0,0.002823]
[1730134621408,0.81555362,68851.0,68850.0,0.002823]
[1730134622219,0.81555173,68851.0,68850.0,0.002823]
[1730134622417,0.81031297,68851.0,68850.0,0.002823]
[1730134622595,0.73781074,68851.0,68850.0,0.002823]
[1730134622792,0.82581374,68851.0,68850.0,0.002823]
[1730134623048,0.82381374,68851.0,68850.0,0.002823]
[1730134623889,0.8238128,68851.0,68850.0,0.002823]
[1730134624663,0.87409611,68851.0,68850.0,0.002823]
[1730134625222,0.8238128,68851.0,68850.0,0.002823]
[1730134626506,0.8258128,68851.0,68850.0,0.002823]
[1730134626715,0.79764807,68851.0,68850.0,0.002823]
[1730134626991,0.82583373,68851.0,68850.0,0.002823]
[1730134627356,0.005,68837.0,68836.0,0.000823]
[1730134627741,0.470381,68837.0,68836.0,0.000823]
[1730134627962,0.45507135,68837.0,68836.0,0.000823]
[1730134628561,0.45407135,68837.0,68836.0,0.000823]
[1730134628742,0.28447588,68837.0,68836.0,0.000823]
[1730134628943,0.29316824,68837.0,68836.0,0.000823]
[1730134632500,0.51081031,68837.0,68836.0,0.000823]
[1730134632642,0.29316824,68837.0,68836.0,0.000823]
[1730134633076,0.45776376,68837.0,68836.0,0.000823]
[1730134633282,0.80890266,68837.0,68836.0,1e-06]
[1730134633477,0.262272,68836.0,68835.0,1e-06]
[1730134633693,0.015,68830.0,68820.0,0.21764207]
[1730134633990,0.63831584,68830.0,68820.0,0.21764207]
[1730134634205,0.260304,68821.0,68820.0,0.21764207]
[1730134634432,0.65370542,68821.0,68820.0,0.21764207]
[1730134634691,0.65370542,68821.0,68812.0,0.21764207]
[1730134634692,0.145321,68813.0,68812.0,0.21764207]
[1730134634894,0.34020924,68813.0,68812.0,0.21764207]
[1730134635113,0.34020924,68813.0,68804.0,0.279823]
[1730134635114,0.145336,68806.0,68804.0,0.279823]
[1730134635315,0.145338,68805.0,68804.0,0.279823]
[1730134635557,0.1589113,68805.0,68804.0,0.279823]
[1730134636486,0.001,68805.0,68804.0,0.60744899]
[1730134636864,0.001,68805.0,68804.0,0.60944899]
[1730134637036,0.001,68805.0,68804.0,0.60744899]
[1730134638314,0.002,68805.0,68804.0,0.60744899]
[1730134638525,0.002,68805.0,68804.0,0.7579528]
[1730134639913,0.21764207,68814.0,68807.0,0.005]
[1730134640127,0.21764207,68814.0,68813.0,0.58850699]
[1730134640370,0.21764207,68822.0,68818.0,0.290618]
[1730134640583,0.21764207,68822.0,68821.0,0.58848999]
[1730134640830,0.23122036,68822.0,68821.0,0.58848999]
[1730134641056,0.01357829,68822.0,68821.0,0.44318599]
[1730134641252,0.15888029,68822.0,68821.0,0.2729]
[1730134641420,0.18060656,68822.0,68821.0,0.2729]
[1730134642047,0.145319,68814.0,68813.0,0.2671]
[1730134642281,0.15889729,68814.0,68813.0,0.2671]
[1730134642631,0.15889729,68814.0,68806.0,0.2684]
[1730134642632,0.290661,68809.0,68806.0,0.2684]
[1730134642830,0.145334,68807.0,68806.0,0.2684]
[1730134643029,0.15891229,68807.0,68806.0,0.2684]
[1730134643472,0.15891229,68807.0,68806.0,0.413736]
[1730134643473,0.01357829,68807.0,68806.0,0.413736]
[1730134644115,0.01357829,68807.0,68806.0,0.2684]
[1730134644322,0.145332,68808.0,68806.0,0.2684]
[1730134644533,0.15891482,68807.0,68806.0,0.43868599]
[1730134644948,0.15891482,68807.0,68806.0,0.2684]
[1730134645141,0.18164283,68807.0,68806.0,0.2714]
[1730134645907,0.18164283,68807.0,68806.0,0.2854]
[1730134646141,0.18064283,68807.0,68806.0,0.2854]
[1730134648057,0.16806888,68807.0,68806.0,0.2854]
[1730134649393,0.02273488,68807.0,68806.0,0.2854]
[1730134649595,0.02273488,68807.0,68806.0,0.430736]
[1730134649843,0.001,68807.0,68806.0,0.430736]
[1730134650028,0.02273328,68807.0,68806.0,0.430736]
[1730134650247,0.02273309,68807.0,68806.0,0.430736]
[1730134650382,0.001,68807.0,68806.0,0.430736]
[1730134651539,0.001,68807.0,68806.0,0.58123981]
[1730134657973,0.001,68807.0,68806.0,0.017]
[1730134658152,0.15992845,68807.0,68806.0,0.017]
[1730134658352,0.18168134,68807.0,68806.0,0.017]
[1730134658579,0.18168134,68807.0,68806.0,0.017823]
[1730134658786,0.18168362,68807.0,68806.0,0.017823]
[1730134659557,0.19077826,68807.0,68806.0,0.017823]
[1730134660011,0.18168362,68807.0,68806.0,0.017823]
[1730134660606,0.18068362,68807.0,68806.0,0.014823]
[1730134661008,0.18168362,68807.0,68806.0,0.003823]
[1730134661560,0.18168362,68807.0,68806.0,0.017823]
[1730134662600,0.1817031,68807.0,68806.0,0.017823]
[1730134666391,0.26028245,68807.0,68806.0,0.017823]
[1730134666596,0.1817031,68807.0,68806.0,0.017823]
[1730134667223,0.54898954,68807.0,68806.0,0.014823]
[1730134667640,0.59007318,68807.0,68806.0,0.003823]
[1730134667845,0.56740068,68807.0,68806.0,0.003823]
[1730134668058,0.70030125,68807.0,68806.0,0.017823]
[1730134668285,0.64996272,68807.0,68806.0,0.014823]
[1730134668493,0.64996272,68807.0,68806.0,0.017823]
[1730134668494,0.85183051,68807.0,68806.0,0.017823]
[1730134668955,0.73253238,68807.0,68806.0,0.003823]
[1730134669144,0.73153238,68807.0,68806.0,0.000823]
[1730134669359,0.73153238,68807.0,68806.0,0.002823]
[1730134669563,0.73153238,68807.0,68806.0,0.000823]
[1730134669771,0.68707001,68807.0,68806.0,0.000823]
[1730134669969,0.67346757,68807.0,68806.0,0.000823]
[1730134670214,0.81697483,68807.0,68806.0,0.000823]
[1730134670547,0.81797483,68807.0,68806.0,0.000823]
[1730134670748,0.76247041,68807.0,68806.0,0.000823]
[1730134671289,0.50557041,68807.0,68806.0,0.000823]
[1730134671500,0.35532422,68807.0,68806.0,0.000823]
[1730134671842,0.32865453,68807.0,68806.0,0.000823]
[1730134672027,0.73734433,68807.0,68806.0,0.000823]
[1730134672243,0.8869656,68807.0,68806.0,0.000823]
[1730134672601,0.91925672,68807.0,68806.0,0.000823]
[1730134672987,0.92225672,68807.0,68806.0,0.000823]
[1730134673333,0.94503176,68807.0,68806.0,0.000823]
[1730134673559,0.93703176,68807.0,68806.0,0.000823]
[1730134673772,0.94503176,68807.0,68806.0,0.000823]
[1730134674176,0.94303176,68807.0,68806.0,0.000823]
[1730134674337,0.93403176,68807.0,68806.0,0.000823]
[1730134674536,0.94403176,68807.0,68806.0,0.000823]
[1730134674838,0.94803176,68807.0,68806.0,0.000823]
[1730134675169,0.94603176,68807.0,68806.0,0.000823]
[1730134675983,0.94403176,68807.0,68806.0,0.000823]
[1730134676191,0.94403176,68807.0,68804.0,0.000823]
[1730134676192,0.262338,68805.0,68804.0,1e-06]
[1730134676405,0.77249516,68805.0,68804.0,1e-06]
[1730134678126,0.78477678,68805.0,68804.0,1e-06]
[1730134678656,0.80359778,68805.0,68804.0,0.001001]
[1730134678807,1.11127508,68805.0,68804.0,0.001001]
[1730134679207,0.96077127,68805.0,68804.0,0.001001]
[1730134680239,0.96077127,68805.0,68800.0,0.000823]
[1730134680240,0.41062762,68801.0,68800.0,1e-06]
[1730134680440,1.16745676,68801.0,68800.0,1e-06]
[1730134680690,1.34815676,68801.0,68800.0,1e-06]
[1730134681465,1.36215676,68801.0,68800.0,1e-06]
[1730134681791,1.55099215,68801.0,68800.0,1e-06]
[1730134681953,1.55099215,68801.0,68800.0,0.001001]
[1730134681954,1.52036011,68801.0,68800.0,0.001001]
[1730134682154,0.16063662,68797.0,68796.0,0.001644]
[1730134682359,0.98826911,68797.0,68796.0,0.001644]
[1730134682940,1.01104863,68797.0,68796.0,0.001644]
[1730134683730,0.99370581,68797.0,68796.0,0.001644]
[1730134683943,1.01104623,68797.0,68796.0,0.001644]
[1730134684149,1.01104505,68797.0,68796.0,0.001644]
[1730134684357,1.02504505,68797.0,68796.0,0.001644]
[1730134684576,0.87354124,68797.0,68796.0,0.001644]
[1730134684794,0.88654124,68797.0,68796.0,0.001644]
[1730134685215,0.88754124,68797.0,68796.0,0.001644]
[1730134685623,0.88755408,68797.0,68796.0,0.001644]
[1730134685823,0.88755408,68797.0,68780.0,0.0001]
[1730134685824,0.250386,68782.0,68780.0,0.0001]
[1730134686003,0.67175887,68782.0,68780.0,0.0001]
[1730134686205,0.65821058,68782.0,68780.0,0.0001]
[1730134686403,0.67195433,68782.0,68780.0,0.0001]
[1730134687208,0.67176574,68782.0,68780.0,0.0001]
[1730134687446,0.64917761,68782.0,68780.0,0.0001]
[1730134687606,0.65821432,68782.0,68780.0,0.0001]
[1730134687838,0.65617734,68782.0,68780.0,0.0001]
[1730134689184,0.79583845,68782.0,68780.0,0.0001]
[1730134689379,0.80668296,68782.0,68780.0,0.0001]
[1730134689725,0.80668326,68782.0,68780.0,0.0001]
[1730134689905,0.81530469,68782.0,68780.0,0.0001]
[1730134690057,0.83365612,68782.0,68780.0,0.0001]
[1730134691402,0.83265612,68782.0,68780.0,0.0001]
[1730134691607,0.85543902,68782.0,68780.0,0.0001]
[1730134692043,0.70293521,68782.0,68780.0,0.0001]
[1730134692400,0.70093521,68782.0,68780.0,0.0001]
[1730134692867,0.65577277,68782.0,68780.0,0.0001]
[1730134693071,0.68928471,68782.0,68780.0,0.0001]
[1730134693319,0.70718911,68782.0,68780.0,0.0001]
[1730134693520,0.72454939,68782.0,68780.0,0.0001]
[1730134693730,0.70718911,68782.0,68780.0,0.0001]
[1730134693994,0.72454893,68782.0,68780.0,0.0001]
[1730134695141,0.87505274,68782.0,68780.0,0.0001]
[1730134696567,0.80248798,68782.0,68780.0,0.0001]
[1730134696771,0.88869257,68782.0,68780.0,0.0001]
[1730134697292,0.86590967,68782.0,68780.0,0.0001]
[1730134697501,0.86690967,68782.0,68780.0,0.0001]
[1730134698639,0.86590967,68782.0,68780.0,0.0001]
[1730134700444,0.71540586,68782.0,68780.0,0.0001]
[1730134701126,0.68828344,68782.0,68780.0,0.0001]
[1730134701447,0.23683626,68782.0,68780.0,0.0001]
[1730134701650,0.2264213,68782.0,68781.0,0.080622]
[1730134701862,0.20378017,68782.0,68781.0,0.080622]
[1730134702067,0.20378017,68782.0,68781.0,0.081622]
[1730134702262,0.20378017,68782.0,68781.0,0.080622]
[1730134702483,0.43064882,68782.0,68781.0,0.080622]
[1730134702687,0.43064882,68782.0,68781.0,0.000822]
[1730134702688,0.45732415,68782.0,68781.0,0.000822]
[1730134703102,0.45932415,68782.0,68781.0,0.000822]
[1730134703319,0.55932415,68782.0,68781.0,0.000822]
[1730134703548,0.55432415,68782.0,68781.0,0.000822]
[1730134703998,0.55532415,68782.0,68781.0,0.00075169]
[1730134704204,0.11328162,68781.0,68780.0,0.0001]
[1730134704429,0.46720203,68781.0,68780.0,0.0001]
[1730134704686,0.49547207,68781.0,68780.0,0.0001]
[1730134705735,0.50447207,68781.0,68780.0,0.0001]
[1730134706778,0.50847207,68781.0,68780.0,0.0001]
[1730134707672,0.50850289,68781.0,68780.0,0.0001]
[1730134713248,0.6590067,68781.0,68780.0,0.0001]
[1730134713449,0.68178989,68781.0,68780.0,0.0001]
[1730134714474,0.53128608,68781.0,68780.0,0.0001]
[1730134715022,0.74892815,68781.0,68780.0,0.0001]
[1730134715197,0.53132694,68781.0,68780.0,0.0001]
[1730134715917,0.5030569,68781.0,68780.0,0.0001]
[1730134716119,0.53138721,68781.0,68780.0,0.0001]
[1730134716549,0.52938721,68781.0,68780.0,0.0001]
[1730134717232,0.50663304,68781.0,68780.0,0.000923]
[1730134718452,0.47830273,68781.0,68780.0,0.000923]
[1730134718681,0.34484033,68781.0,68780.0,0.000923]
[1730134718909,0.34912195,68781.0,68780.0,0.281123]
[1730134720892,0.34484033,68781.0,68780.0,0.281123]
[1730134721523,0.34912195,68781.0,68780.0,0.281123]
[1730134722058,0.34910942,68781.0,68780.0,0.281123]
[1730134722507,0.37189126,68781.0,68780.0,0.281123]
[1730134722748,0.52639507,68781.0,68780.0,0.000923]
[1730134723061,0.67689888,68781.0,68780.0,0.000923]
[1730134723237,0.69868231,68781.0,68780.0,0.000923]
[1730134723438,0.69440069,68781.0,68780.0,0.000923]
[1730134723758,0.69868231,68781.0,68780.0,0.000923]
[1730134724109,0.5481785,68781.0,68780.0,0.000923]
[1730134724291,0.59165712,68781.0,68780.0,0.000923]
[1730134725058,0.5481785,68781.0,68780.0,0.000923]
[1730134725257,0.61339644,68781.0,68780.0,0.000923]
[1730134725815,0.145405,68773.0,68772.0,0.0794]
[1730134726043,0.25362823,68773.0,68772.0,0.0794]
[1730134726248,0.40413204,68773.0,68772.0,0.0794]
[1730134726502,0.40413204,68773.0,68767.0,0.000822]
[1730134726503,0.145416,68768.0,68767.0,0.000822]
[1730134726681,0.23621152,68768.0,68767.0,0.000822]
[1730134727119,0.42918652,68768.0,68767.0,0.001822]
[1730134728087,0.44661014,68768.0,68767.0,0.001822]
[1730134728285,0.42918652,68768.0,68767.0,0.001822]
[1730134728490,0.43018652,68768.0,68767.0,0.001822]
[1730134729333,0.43118652,68768.0,68767.0,0.002822]
[1730134729570,0.43115045,68768.0,68767.0,0.002822]
[1730134730221,0.42588783,68768.0,68767.0,0.002822]
[1730134730481,0.42588582,68768.0,68767.0,0.002822]
[1730134731160,0.40410975,68768.0,68767.0,0.002822]
[1730134731580,0.55461356,68768.0,68767.0,0.002822]
[1730134732160,0.55361356,68768.0,68767.0,0.001822]
[1730134732387,0.55361356,68768.0,68767.0,0.002822]
[1730134732582,0.55261356,68768.0,68767.0,0.001822]
[1730134733065,0.52072511,68768.0,68767.0,0.001822]
[1730134733268,0.71956604,68768.0,68767.0,0.001822]
[1730134733503,0.66921014,68768.0,68767.0,0.001822]
[1730134733964,0.49492415,68768.0,68767.0,0.001822]
[1730134734162,0.66521014,68768.0,68767.0,0.280722]
[1730134735214,0.66521014,68768.0,68767.0,0.281722]
[1730134735421,0.66521014,68768.0,68767.0,0.280722]
[1730134736496,0.66521014,68768.0,68767.0,0.281722]
[1730134737100,0.49492415,68768.0,68767.0,0.281722]
[1730134737314,0.66521014,68768.0,68767.0,0.281722]
[1730134738642,0.66520898,68768.0,68767.0,0.281722]
[1730134738837,0.66520898,68768.0,68767.0,0.280722]
[1730134739478,0.145429,68762.0,68761.0,0.0797]
[1730134739647,0.37109234,68762.0,68761.0,0.0797]
[1730134739849,0.38470048,68762.0,68761.0,0.0797]
[1730134740228,0.145431,68761.0,68760.0,0.18791838]
[1730134740432,0.21441303,68761.0,68760.0,0.18791838]
[1730134740636,0.21441303,68761.0,68760.0,0.1872]
[1730134740854,0.145441,68756.0,68755.0,0.001]
[1730134741083,0.38470902,68756.0,68755.0,0.001]
[1730134742126,0.23926802,68756.0,68755.0,0.001]
[1730134742331,0.38570902,68756.0,68755.0,0.001]
[1730134742531,0.38470902,68756.0,68755.0,0.001]
[1730134743064,0.37478801,68756.0,68755.0,0.001]
[1730134743236,0.38566776,68756.0,68755.0,0.002]
[1730134743766,0.38566776,68756.0,68755.0,0.001]
[1730134744109,0.38666776,68756.0,68755.0,0.002]
[1730134744722,0.38566776,68756.0,68755.0,0.002]
[1730134745126,0.38666776,68756.0,68755.0,0.002]
[1730134745333,0.19639989,68756.0,68755.0,0.001]
[1730134745558,0.21637645,68756.0,68755.0,0.002]
[1730134746604,0.147441,68756.0,68755.0,0.002]
[1730134746810,0.18278082,68756.0,68755.0,0.004]
[1730134747019,0.147441,68756.0,68755.0,0.004]
[1730134747215,0.18278031,68756.0,68755.0,0.004]
[1730134748982,0.16103304,68756.0,68755.0,0.004]
[1730134750193,0.002,68756.0,68755.0,0.60786764]
[1730134750406,0.002,68756.0,68755.0,0.73003319]
[1730134750642,0.002,68756.0,68755.0,0.83903932]
[1730134750849,0.002,68756.0,68755.0,0.83403932]
[1730134751066,0.002,68756.0,68755.0,0.73002209]
[1730134751284,0.001,68756.0,68755.0,0.72902209]
[1730134751505,0.36306207,68767.0,68766.0,0.26631838]
[1730134751706,0.37666207,68767.0,68766.0,0.26631838]
[1730134751932,0.23124207,68767.0,68766.0,0.26631838]
[1730134752140,0.0136,68767.0,68766.0,0.26631838]
[1730134752334,0.159018,68767.0,68766.0,0.26631838]
[1730134753204,0.160018,68767.0,68766.0,0.26631838]
[1730134753815,0.160018,68767.0,68766.0,0.28031838]
[1730134754243,0.161666,68767.0,68766.0,0.28031838]
[1730134754881,0.016248,68767.0,68766.0,0.28031838]
[1730134755029,0.161666,68767.0,68766.0,0.28031838]
[1730134755446,0.37930807,68767.0,68766.0,0.28031838]
[1730134755635,0.18341741,68767.0,68766.0,0.01571838]
[1730134756074,0.18341741,68767.0,68766.0,0.015]
[1730134756341,0.18341741,68767.0,68766.0,0.014]
[1730134756528,0.21698654,68767.0,68766.0,0.014]
[1730134756957,0.21697833,68767.0,68766.0,0.014]
[1730134757155,0.22548498,68767.0,68766.0,0.014]
[1730134757778,0.23907813,68767.0,68766.0,0.014]
[1730134758215,0.54908627,68767.0,68766.0,0.014]
[1730134758627,0.49358221,68767.0,68766.0,0.014]
[1730134759412,0.49358221,68767.0,68759.0,0.00071838]
[1730134759413,0.145433,68760.0,68759.0,0.00071838]
[1730134759619,0.35106145,68760.0,68759.0,0.00071838]
[1730134759785,0.35106145,68760.0,68759.0,0.00171838]
[1730134760596,0.35206145,68760.0,68759.0,0.01471838]
[1730134761097,0.35206145,68760.0,68759.0,0.001]
[1730134761318,0.35106145,68760.0,68759.0,0.00171838]
[1730134761530,0.35206069,68760.0,68759.0,0.01471838]
[1730134762162,0.35206069,68760.0,68759.0,0.01932274]
[1730134762315,0.35206069,68760.0,68759.0,0.01432274]
[1730134762695,0.1817747,68760.0,68759.0,0.01832274]
[1730134762922,0.1817747,68760.0,68759.0,0.02032274]
[1730134763125,0.16002596,68760.0,68759.0,0.29402274]
[1730134763324,0.16002596,68760.0,68759.0,0.28102274]
[1730134763325,0.15902596,68760.0,68759.0,0.28102274]
[1730134764329,0.01359296,68760.0,68759.0,0.28102274]
[1730134764544,0.01459296,68760.0,68759.0,0.28102274]
[1730134764761,0.16002596,68760.0,68759.0,0.28102274]
[1730134765388,0.01459296,68760.0,68759.0,0.28102274]
[1730134765568,0.146433,68760.0,68759.0,0.28102274]
[1730134766090,0.001,68760.0,68759.0,0.28102274]
[1730134766270,0.001,68760.0,68759.0,0.28184674]
[1730134766477,0.146433,68760.0,68759.0,0.28184674]
[1730134767111,0.146433,68760.0,68759.0,0.45213273]
[1730134767112,0.001,68760.0,68759.0,0.45213273]
[1730134767313,0.001,68760.0,68759.0,0.64111945]
[1730134767514,0.001,68760.0,68759.0,0.47083861]
[1730134767733,0.001,68760.0,68759.0,0.65339367]
[1730134767923,0.001,68760.0,68759.0,0.58806609]
[1730134768258,0.001,68760.0,68759.0,0.4926147]
[1730134768500,0.001,68760.0,68759.0,0.65340642]
[1730134769181,0.145422,68766.0,68762.0,0.079]
[1730134769320,0.145422,68766.0,68765.0,0.00332274]
[1730134770341,0.16000836,68766.0,68765.0,0.00332274]
[1730134770544,0.16000836,68766.0,68765.0,0.00132274]
[1730134770936,0.15900836,68766.0,68765.0,0.00132274]
[1730134771344,0.18074518,68766.0,68765.0,0.00132274]
[1730134771581,0.18174518,68766.0,68765.0,0.01532274]
[1730134771804,0.67650768,68766.0,68765.0,0.014]
[1730134772015,0.46070368,68766.0,68765.0,0.014]
[1730134772282,0.45770368,68766.0,68765.0,0.027]
[1730134772689,0.45670368,68766.0,68765.0,0.014]
[1730134773003,0.46170368,68766.0,68765.0,0.014]
[1730134773625,0.145429,68762.0,68761.0,0.00060436]
[1730134773824,0.35103817,68762.0,68761.0,0.00060436]
[1730134775201,0.36191139,68762.0,68761.0,0.00160436]
[1730134775551,0.36191139,68762.0,68761.0,0.001]
[1730134775898,0.5124152,68762.0,68761.0,0.001]
[1730134776119,0.52600816,68762.0,68761.0,0.001]
[1730134776529,0.52900816,68762.0,68761.0,0.001]
[1730134776992,0.62900816,68762.0,68761.0,0.001]
[1730134777629,0.62900969,68762.0,68761.0,0.001]
[1730134777836,0.64640998,68762.0,68761.0,0.001]
[1730134778239,0.63281549,68762.0,68761.0,0.001]
[1730134778624,0.6154152,68762.0,68761.0,0.001]
[1730134779248,0.5692188,68762.0,68761.0,0.001]
[1730134780525,0.61943364,68762.0,68761.0,0.001]
[1730134781304,0.72478797,68762.0,68761.0,0.001]
[1730134781468,0.70213364,68762.0,68761.0,0.001]
[1730134782071,0.54862983,68762.0,68761.0,0.001]
[1730134782516,0.55562983,68762.0,68761.0,0.002]
[1730134783099,0.55562983,68762.0,68761.0,0.001]
[1730134783303,0.55862983,68762.0,68761.0,0.001]
[1730134784004,0.47592983,68762.0,68761.0,0.001]
[1730134787423,0.44330168,68762.0,68761.0,0.001]
[1730134787651,0.47590973,68762.0,68761.0,0.001]
[1730134789279,0.49855029,68762.0,68761.0,0.001]
[1730134789486,0.47590973,68762.0,68761.0,0.001]
[1730134790499,0.49854847,68762.0,68761.0,0.001]
[1730134790711,0.47590973,68762.0,68761.0,0.001]
[1730134791831,0.69223234,68762.0,68761.0,0.001]
[1730134792036,0.68136299,68762.0,68761.0,0.001]
[1730134792231,0.68136299,68762.0,68759.0,0.000824]
[1730134792232,0.004,68760.0,68759.0,0.000824]
[1730134792382,0.149433,68760.0,68759.0,0.000824]
[1730134792583,0.249433,68760.0,68759.0,0.000824]
[1730134793391,0.28474392,68760.0,68759.0,0.000824]
[1730134793594,0.29674392,68760.0,68759.0,0.001824]
[1730134794150,0.30574392,68760.0,68759.0,0.002824]
[1730134796325,0.30374392,68760.0,68759.0,0.002824]
[1730134797504,0.32637913,68760.0,68759.0,0.002824]
[1730134797712,0.35463393,68760.0,68759.0,0.002824]
[1730134798320,0.33199872,68760.0,68759.0,0.002824]
[1730134798518,0.56538246,68760.0,68759.0,0.002824]
[1730134799651,0.57897692,68760.0,68759.0,0.002824]
[1730134800554,0.35269558,68760.0,68759.0,0.002824]
[1730134800780,0.46683625,68760.0,68759.0,0.002824]
[1730134801012,0.46483625,68760.0,68759.0,0.002824]
[1730134801292,0.33530801,68760.0,68759.0,0.192524]
[1730134801470,0.23530801,68760.0,68759.0,0.19324238]
[1730134801752,0.05631092,68760.0,68759.0,0.19324238]
[1730134801968,0.22334258,68760.0,68759.0,0.27284238]
[1730134802373,0.22534258,68760.0,68759.0,0.27284238]